bitfinex/quotes_BTCUSD_20220109
["timestamp","ask_amount","ask_price","bid_price","bid_amount"]
[1641694360308,0.8272564,41901.0,41900.0,0.1]
[1641694360908,0.81993737,41901.0,41900.0,0.1]
[1641694361108,0.82559704,41901.0,41900.0,0.1]
[1641694361309,0.83559704,41901.0,41900.0,0.1]
[1641694361555,0.82359704,41901.0,41900.0,0.1]
[1641694361756,0.72359704,41901.0,41900.0,0.1]
[1641694362256,0.73659704,41901.0,41900.0,0.1]
[1641694363555,0.72359704,41901.0,41900.0,0.1]
[1641694363755,0.71793737,41901.0,41900.0,0.1]
[1641694363958,0.61793737,41901.0,41900.0,0.1]
[1641694364355,0.63193737,41901.0,41900.0,0.1]
[1641694364756,0.62893737,41901.0,41900.0,0.1]
[1641694365310,0.62397195,41901.0,41900.0,0.1]
[1641694365509,0.60997195,41901.0,41900.0,0.1]
[1641694365708,1.05997195,41901.0,41893.0,0.11937701]
[1641694365912,0.059696,41897.0,41893.0,0.11937701]
[1641694366107,0.059696,41897.0,41894.0,0.11938594]
[1641694366311,0.059696,41897.0,41889.0,0.41453424]
[1641694366508,0.36856007,41894.0,41889.0,0.41453424]
[1641694366710,0.32288245,41893.0,41889.0,0.41414966]
[1641694366910,0.32288245,41893.0,41891.0,0.11938108]
[1641694367109,0.059691,41892.0,41891.0,0.11938108]
[1641694367309,0.48794207,41894.0,41891.0,0.11938108]
[1641694367511,0.48794207,41894.0,41892.0,0.05968926]
[1641694368112,0.44788119,41894.0,41892.0,0.05968926]
[1641694368313,0.44788119,41894.0,41892.0,0.11937926]
[1641694368314,0.45488119,41894.0,41892.0,0.11937926]
[1641694369158,0.11937926,41892.0,41889.0,0.00038465]
[1641694369359,0.252265,41890.0,41889.0,0.00038465]
[1641694369957,1.01450808,41890.0,41889.0,0.00038465]
[1641694370156,1.11450808,41890.0,41889.0,0.00038468]
[1641694370357,1.41728741,41890.0,41889.0,0.00038468]
[1641694371457,1.31728741,41890.0,41889.0,0.00038468]
[1641694371656,0.98898655,41890.0,41889.0,0.00038468]
[1641694371855,1.04868955,41890.0,41889.0,0.00038468]
[1641694372057,1.32534726,41890.0,41880.0,0.40512645]
[1641694372255,1.08408226,41890.0,41880.0,0.40512645]
[1641694372909,1.35824104,41890.0,41885.0,0.059702]
[1641694373108,0.252265,41889.0,41885.0,0.059702]
[1641694373310,0.059703,41888.0,41885.0,0.059702]
[1641694373512,0.252265,41887.0,41884.0,0.11939872]
[1641694374310,0.252265,41887.0,41880.0,0.40512645]
[1641694374311,0.059706,41886.0,41880.0,0.40512645]
[1641694374608,0.33598503,41886.0,41880.0,0.40512645]
[1641694375007,0.35887272,41881.0,41880.0,0.40512645]
[1641694375213,0.59938009,41881.0,41880.0,0.40512645]
[1641694375409,0.65908909,41881.0,41880.0,0.40512645]
[1641694376314,0.068709,41881.0,41880.0,0.40512645]
[1641694376558,0.068709,41881.0,41880.0,0.78930645]
[1641694376753,0.009,41881.0,41880.0,0.78969628]
[1641694377354,0.009,41881.0,41880.0,0.83969628]
[1641694377555,0.179126,41888.0,41880.0,0.88969628]
[1641694377754,0.179126,41888.0,41883.0,0.059696]
[1641694377955,0.059696,41886.0,41883.0,0.059696]
[1641694378356,0.059696,41886.0,41884.0,0.32502864]
[1641694378959,0.059696,41886.0,41884.0,0.32541839]
[1641694379357,0.179126,41888.0,41884.0,0.55450452]
[1641694379358,0.059692,41888.0,41884.0,0.55450452]
[1641694379557,0.059692,41888.0,41886.0,0.119383]
[1641694379759,0.11937926,41892.0,41887.0,0.00128522]
[1641694379959,0.11937926,41892.0,41888.0,0.0478]
[1641694380413,0.14237926,41892.0,41889.0,0.059688]
[1641694380613,0.14237926,41892.0,41891.0,0.00121577]
[1641694381113,0.14237926,41892.0,41891.0,0.38539577]
[1641694381313,0.14237926,41892.0,41891.0,0.43539577]
[1641694381618,0.11937926,41892.0,41891.0,0.43539577]
[1641694381813,0.11937926,41892.0,41891.0,0.49507321]
[1641694382014,0.11937926,41892.0,41891.0,0.54507321]
[1641694382213,0.11937926,41892.0,41891.0,0.86965483]
[1641694382414,0.11937926,41892.0,41891.0,0.56007321]
[1641694382815,0.12937926,41892.0,41891.0,0.56007321]
[1641694383616,0.12437926,41892.0,41891.0,0.54507321]
[1641694384455,0.12437926,41892.0,41891.0,0.56007321]
[1641694385456,0.20076,41902.0,41891.0,0.66007321]
[1641694385660,0.20076,41902.0,41899.0,0.0012865]
[1641694386057,0.02074418,41905.0,41899.0,0.0012865]
[1641694386258,0.028,41902.0,41899.0,0.0092865]
[1641694386656,0.00043374,41901.0,41899.0,0.0092865]
[1641694386858,0.00043374,41901.0,41900.0,0.119342]
[1641694387258,0.00043374,41901.0,41900.0,0.23867953]
[1641694387457,0.00043374,41901.0,41900.0,0.63261222]
[1641694387659,0.02074418,41905.0,41900.0,1.01679222]
[1641694387908,0.00043374,41901.0,41900.0,0.63261222]
[1641694388102,0.00043374,41901.0,41900.0,1.01679222]
[1641694388303,0.00043374,41901.0,41900.0,1.02379222]
[1641694388703,0.02074418,41905.0,41900.0,0.92379222]
[1641694388905,0.00043374,41901.0,41900.0,0.53961222]
[1641694389204,0.00043374,41901.0,41900.0,0.92379222]
[1641694389706,0.00043374,41901.0,41900.0,0.91679222]
[1641694389907,0.02074418,41905.0,41902.0,0.05966827]
[1641694390208,0.08041418,41905.0,41903.0,0.17900688]
[1641694390406,0.02074418,41905.0,41904.0,1.08597781]
[1641694390607,0.0292583,41906.0,41904.0,0.91163781]
[1641694390804,0.0292583,41906.0,41905.0,0.43324333]
[1641694391007,0.02969204,41906.0,41905.0,0.43324333]
[1641694391215,0.02969204,41906.0,41905.0,0.48324333]
[1641694391407,0.02969204,41906.0,41905.0,0.79635409]
[1641694392058,0.0292583,41906.0,41905.0,0.79635409]
[1641694392256,0.02969204,41906.0,41905.0,0.48198]
[1641694392459,0.02969204,41906.0,41905.0,0.49925879]
[1641694392656,0.02969204,41906.0,41905.0,0.77724135]
[1641694393459,0.02969204,41906.0,41905.0,1.12238473]
[1641694393662,0.02969204,41906.0,41905.0,1.10638473]
[1641694393859,0.02969204,41906.0,41905.0,0.76124135]
[1641694394261,0.0292583,41906.0,41905.0,0.77724135]
[1641694394459,0.02969204,41906.0,41905.0,0.77724135]
[1641694394860,0.02969204,41906.0,41905.0,1.04192322]
[1641694395708,0.02969204,41906.0,41905.0,1.02592322]
[1641694396308,0.02969204,41906.0,41905.0,1.04292322]
[1641694396507,0.00469204,41906.0,41905.0,1.04292322]
[1641694397609,0.00469204,41906.0,41905.0,1.12592322]
[1641694397812,0.0001,41911.0,41909.0,0.38418]
[1641694398110,0.0001,41911.0,41910.0,0.54162478]
[1641694398312,0.0002,41918.0,41910.0,0.54162478]
[1641694398510,0.0002,41918.0,41911.0,0.38418]
[1641694398710,0.0002,41918.0,41911.0,0.43198]
[1641694398914,0.0002,41923.0,41915.0,0.83418]
[1641694399163,0.0002,41923.0,41916.0,0.61089105]
[1641694399370,0.0002,41923.0,41916.0,0.55125403]
[1641694399563,0.0002,41923.0,41920.0,0.00124895]
[1641694399764,0.0002,41923.0,41916.0,0.11927403]
[1641694399963,0.11979721,41922.0,41916.0,0.11927403]
[1641694400365,0.12279721,41922.0,41917.0,0.059654]
[1641694400565,0.12279721,41922.0,41916.0,0.023]
[1641694400566,0.91614558,41921.0,41916.0,0.023]
[1641694400769,0.059658,41919.0,41916.0,0.023]
[1641694400967,0.371587,41918.0,41916.0,0.023]
[1641694401166,0.32369117,41917.0,41916.0,0.023]
[1641694401367,0.57595617,41917.0,41916.0,0.023]
[1641694401766,0.40613759,41913.0,41912.0,0.11931539]
[1641694402371,0.40913759,41913.0,41912.0,0.15531539]
[1641694402570,0.7043865,41913.0,41912.0,0.15531539]
[1641694403204,0.70482886,41913.0,41912.0,0.15531539]
[1641694403604,0.70182886,41913.0,41912.0,0.11931539]
[1641694404203,0.7013865,41913.0,41912.0,0.11931539]
[1641694404403,0.7013865,41913.0,41912.0,0.13631539]
[1641694404404,0.70682886,41913.0,41912.0,0.13631539]
[1641694404604,1.22910202,41913.0,41912.0,0.017]
[1641694404805,1.32910202,41913.0,41912.0,0.017]
[1641694405008,1.32910202,41913.0,41912.0,0.00456069]
[1641694405009,1.05909386,41913.0,41912.0,0.00456069]
[1641694405605,1.05409386,41913.0,41899.0,0.59673614]
[1641694405806,0.059665,41911.0,41905.0,0.05967]
[1641694406011,0.61845119,41906.0,41893.0,0.000696]
[1641694406209,0.21905598,41905.0,41898.0,0.11934943]
[1641694406408,0.61845119,41906.0,41905.0,0.03]
[1641694406662,0.87071619,41906.0,41905.0,0.03]
[1641694407062,0.99007219,41906.0,41905.0,0.03]
[1641694407668,0.99007219,41906.0,41898.0,0.11934943]
[1641694407865,0.73780719,41906.0,41898.0,0.11934943]
[1641694408362,0.73980719,41906.0,41898.0,0.18734943]
[1641694408564,0.73980719,41906.0,41902.0,0.05967387]
[1641694408763,0.252265,41905.0,41902.0,0.05967387]
[1641694408962,0.311938,41905.0,41902.0,0.11934887]
[1641694409363,0.311938,41905.0,41898.0,0.13734943]
[1641694409567,0.311938,41905.0,41897.0,0.1197347]
[1641694409762,0.059673,41905.0,41897.0,0.1197347]
[1641694410417,0.064673,41905.0,41897.0,0.1657347]
[1641694410614,0.61615924,41899.0,41897.0,0.1657347]
[1641694410815,0.67583924,41899.0,41897.0,0.16535]
[1641694411016,0.67583924,41899.0,41897.0,0.16573483]
[1641694411618,0.67583924,41899.0,41897.0,0.10973483]
[1641694411916,0.67583924,41899.0,41897.0,0.16903207]
[1641694412215,0.67583924,41899.0,41897.0,0.16941693]
[1641694412416,0.67883924,41899.0,41897.0,0.21841693]
[1641694413617,0.67583924,41899.0,41897.0,0.16851693]
[1641694414068,0.67583924,41899.0,41894.0,0.059685]
[1641694414263,0.77123924,41899.0,41897.0,0.00038486]
[1641694414464,0.252265,41898.0,41897.0,0.04638486]
[1641694415363,0.334395,41898.0,41893.0,0.000696]
[1641694415565,0.059698,41896.0,41893.0,0.000696]
[1641694415763,0.252265,41895.0,41893.0,0.000696]
[1641694416162,0.32184104,41894.0,41893.0,0.000696]
[1641694416365,0.57410604,41894.0,41893.0,0.000696]
[1641694416567,0.67410604,41894.0,41893.0,0.000696]
[1641694416965,0.352265,41894.0,41893.0,0.000696]
[1641694417467,0.252265,41894.0,41893.0,0.000696]
[1641694418217,0.39001873,41896.0,41890.0,0.05969]
[1641694418411,0.03,41894.0,41890.0,0.05969]
[1641694418612,0.03,41894.0,41892.0,0.05968728]
[1641694419013,0.03,41894.0,41893.0,0.88187029]
[1641694419213,0.03,41894.0,41893.0,0.73187029]
[1641694419412,0.03,41894.0,41893.0,0.63187029]
[1641694419613,0.7274548,41899.0,41893.0,0.38418]
[1641694419814,0.7274548,41899.0,41892.0,0.41328994]
[1641694419815,0.36327763,41896.0,41892.0,0.41328994]
[1641694420515,0.37327763,41896.0,41892.0,0.41328994]
[1641694420716,0.059688,41894.0,41892.0,0.4129]
[1641694420913,0.059688,41894.0,41892.0,0.41328993]
[1641694421313,0.059688,41894.0,41892.0,0.00038993]
[1641694421756,0.059688,41894.0,41891.0,0.1193675]
[1641694421958,0.059688,41894.0,41892.0,0.00038994]
[1641694422360,0.076688,41894.0,41892.0,0.00038994]
[1641694423364,0.076688,41894.0,41891.0,0.11475744]
[1641694423762,0.059688,41894.0,41891.0,0.11475744]
[1641694424362,0.076688,41894.0,41891.0,0.11475744]
[1641694424965,0.076688,41894.0,41887.0,0.06094789]
[1641694425167,0.27454432,41892.0,41887.0,0.00125389]
[1641694425424,0.27454432,41892.0,41880.0,0.81802645]
[1641694425425,0.119383,41885.0,41880.0,0.81802645]
[1641694425624,0.00120601,41882.0,41880.0,0.40512645]
[1641694426024,0.29851006,41881.0,41880.0,0.40512645]
[1641694426223,0.65150677,41881.0,41880.0,0.40512645]
[1641694426423,0.90377177,41881.0,41880.0,0.40512645]
[1641694426623,1.00377177,41881.0,41880.0,0.40512645]
[1641694427425,1.00377177,41881.0,41880.0,0.40551389]
[1641694427824,1.29274739,41881.0,41880.0,0.40551389]
[1641694428425,1.30374739,41881.0,41880.0,0.40512645]
[1641694428627,1.30374739,41881.0,41880.0,0.40551389]
[1641694429058,1.01477177,41881.0,41880.0,0.40551389]
[1641694429261,1.31538362,41881.0,41880.0,0.40551389]
[1641694429458,1.31538362,41881.0,41871.0,0.004]
[1641694429459,0.5,41880.0,41871.0,0.004]
[1641694429658,0.059724,41876.0,41871.0,0.004]
[1641694430258,0.60962416,41875.0,41871.0,0.004]
[1641694430471,0.32882838,41874.0,41871.0,0.004]
[1641694430659,0.311985,41873.0,41871.0,0.004]
[1641694431959,0.311985,41873.0,41871.0,0.00438489]
[1641694432360,0.324985,41873.0,41871.0,0.00438489]
[1641694432806,0.27635971,41872.0,41871.0,0.004]
[1641694433012,0.52862471,41872.0,41871.0,0.00438489]
[1641694433209,0.252265,41872.0,41871.0,0.00438489]
[1641694433709,0.52634526,41872.0,41871.0,0.00438489]
[1641694433906,0.52634526,41872.0,41871.0,0.004]
[1641694434106,0.52634526,41872.0,41871.0,0.0043849]
[1641694434508,0.54034526,41872.0,41871.0,0.0043849]
[1641694434710,0.266265,41872.0,41871.0,0.0043849]
[1641694435107,0.252265,41872.0,41871.0,0.0043849]
[1641694435909,0.52272718,41872.0,41871.0,0.0043849]
[1641694436111,0.52272718,41872.0,41871.0,0.004]
[1641694436313,0.52272718,41872.0,41871.0,0.00437744]
[1641694436559,0.53572718,41872.0,41871.0,0.00437744]
[1641694437365,0.265265,41872.0,41871.0,0.00437744]
[1641694437563,0.37024585,41872.0,41871.0,0.00437744]
[1641694437762,0.35724585,41872.0,41871.0,0.00437744]
[1641694438363,0.35724585,41872.0,41871.0,0.004]
[1641694438562,0.26924585,41872.0,41871.0,0.00437744]
[1641694438762,0.36924585,41872.0,41871.0,0.00437744]
[1641694439362,0.65430439,41872.0,41871.0,0.004]
[1641694439566,0.65430439,41872.0,41871.0,0.00437744]
[1641694439763,0.64230439,41872.0,41871.0,0.00437744]
[1641694440616,0.65430439,41872.0,41871.0,0.00437756]
[1641694441715,0.64230439,41872.0,41871.0,0.00437756]
[1641694442518,0.65430439,41872.0,41871.0,0.00437756]
[1641694442720,0.65430439,41872.0,41871.0,0.004]
[1641694443017,0.65430439,41872.0,41871.0,0.00437756]
[1641694443219,0.7335661,41872.0,41871.0,0.00437756]
[1641694443420,0.00123221,41869.0,41861.0,0.004]
[1641694443622,0.00129358,41862.0,41861.0,0.004]
[1641694443824,0.36759858,41862.0,41861.0,0.004]
[1641694444074,0.8693447,41862.0,41861.0,0.004]
[1641694444369,1.2709708,41862.0,41861.0,0.004]
[1641694444569,1.2819708,41862.0,41861.0,0.004]
[1641694445069,1.2341808,41862.0,41861.0,0.00438247]
[1641694445271,1.2939278,41862.0,41861.0,0.00438247]
[1641694445471,0.63880926,41862.0,41861.0,0.00438247]
[1641694445771,0.62780926,41862.0,41861.0,0.00438247]
[1641694445970,0.62780926,41862.0,41861.0,0.004]
[1641694446173,0.62780926,41862.0,41861.0,0.00438247]
[1641694446571,0.67480926,41862.0,41861.0,0.00438247]
[1641694446773,0.425262,41862.0,41861.0,0.00438247]
[1641694447072,0.047,41862.0,41861.0,0.00438247]
[1641694447916,0.30384487,41864.0,41862.0,0.05973]
[1641694448109,0.252265,41863.0,41862.0,0.11945931]
[1641694448310,0.252265,41863.0,41862.0,0.11984175]
[1641694448615,0.252265,41863.0,41862.0,0.00938244]
[1641694449312,0.252265,41863.0,41862.0,0.009]
[1641694449510,0.252265,41863.0,41862.0,0.0093751]
[1641694449908,0.252265,41863.0,41862.0,0.0003751]
[1641694450313,0.25353551,41863.0,41862.0,0.0003751]
[1641694450510,0.50975,41862.0,41861.0,0.004]
[1641694450713,0.312015,41862.0,41861.0,0.004]
[1641694450911,0.412015,41862.0,41861.0,0.004]
[1641694451313,0.312015,41862.0,41861.0,0.004]
[1641694451762,0.252265,41861.0,41847.0,0.27893612]
[1641694451965,0.05975,41862.0,41848.0,0.38418]
[1641694452164,0.05975,41862.0,41854.0,0.05973625]
[1641694452362,0.05975,41862.0,41858.0,0.059737]
[1641694452565,0.059738,41860.0,41858.0,0.059737]
[1641694452762,0.252265,41859.0,41858.0,0.059737]
[1641694453164,0.252265,41859.0,41853.0,0.23895248]
[1641694453364,0.252265,41859.0,41848.0,0.064]
[1641694453365,0.00120315,41859.0,41848.0,0.064]
[1641694453766,0.059754,41854.0,41844.0,0.059753]
[1641694453966,0.059754,41854.0,41853.0,0.00038002]
[1641694454166,0.62818831,41854.0,41853.0,0.00038002]
[1641694454570,0.66518831,41854.0,41853.0,0.00038002]
[1641694455718,0.62818831,41854.0,41853.0,0.00038002]
[1641694455918,0.62818831,41854.0,41851.0,0.05974797]
[1641694456120,0.62818831,41854.0,41853.0,0.00038002]
[1641694456620,0.65018831,41854.0,41853.0,0.00038002]
[1641694457017,0.65018831,41854.0,41846.0,0.1194956]
[1641694457222,0.39792331,41854.0,41853.0,0.00038002]
[1641694457418,0.65018831,41854.0,41853.0,0.00038002]
[1641694457819,0.62818831,41854.0,41853.0,0.00038002]
[1641694458218,0.62818831,41854.0,41853.0,0.00037279]
[1641694458620,0.64518831,41854.0,41853.0,0.00037279]
[1641694459266,0.64518831,41854.0,41848.0,0.059752]
[1641694459467,0.39292331,41854.0,41853.0,0.00037279]
[1641694459664,0.64518831,41854.0,41853.0,0.00037279]
[1641694459866,0.62818831,41854.0,41853.0,0.00037279]
[1641694460266,0.312019,41854.0,41853.0,0.00037279]
[1641694460567,0.017,41854.0,41853.0,0.84817279]
[1641694460766,0.017,41854.0,41853.0,0.43235279]
[1641694461568,0.076742,41854.0,41853.0,0.43235279]
[1641694461770,0.059742,41854.0,41853.0,0.04817279]
[1641694462468,0.071742,41854.0,41853.0,0.04817279]
[1641694462667,0.071742,41854.0,41853.0,0.0481729]
[1641694463706,0.071742,41854.0,41853.0,0.04816438]
[1641694463907,0.059742,41854.0,41853.0,0.04816438]
[1641694464505,0.069742,41854.0,41853.0,0.04816438]
[1641694464707,0.069742,41854.0,41853.0,0.0478]
[1641694464906,0.069742,41854.0,41853.0,0.04816438]
[1641694466206,0.069742,41854.0,41853.0,0.43234438]
[1641694466407,0.01,41854.0,41853.0,0.68287113]
[1641694466668,0.01,41854.0,41853.0,0.73287113]
[1641694466867,0.9842,41868.0,41853.0,0.88411319]
[1641694467072,0.9842,41868.0,41860.0,0.11945638]
[1641694467267,0.53419969,41869.0,41861.0,0.0478]
[1641694467669,0.65365169,41869.0,41861.0,0.0478]
[1641694467866,0.53419969,41869.0,41861.0,0.0478]
[1641694468066,0.53376269,41869.0,41861.0,0.0478]
[1641694468267,0.53419981,41869.0,41865.0,0.05972993]
[1641694468471,0.252265,41868.0,41866.0,0.05973]
[1641694468866,0.119462,41867.0,41866.0,0.05973]
[1641694469068,0.119462,41867.0,41865.0,0.05972993]
[1641694469069,0.371727,41867.0,41865.0,0.05972993]
[1641694469268,0.252265,41866.0,41861.0,0.0478]
[1641694469469,0.30541191,41868.0,41861.0,0.0478]
[1641694470319,0.119474,41865.0,41861.0,0.0478]
[1641694470514,0.24647949,41862.0,41861.0,0.0478]
[1641694471514,0.30621549,41862.0,41861.0,0.0478]
[1641694472513,0.31321549,41862.0,41861.0,0.0478]
[1641694473913,0.30621549,41862.0,41861.0,0.0478]
[1641694474365,0.059736,41862.0,41861.0,0.0478]
[1641694474561,0.004,41862.0,41861.0,0.68286235]
[1641694475766,1.5545,41880.0,41862.0,0.8]
[1641694475965,0.24611032,41888.0,41868.0,0.00126553]
[1641694475966,0.0004373,41869.0,41868.0,0.00126553]
[1641694476165,0.0004373,41869.0,41868.0,0.43324553]
[1641694476363,0.0004373,41869.0,41868.0,0.53324553]
[1641694476563,0.0004373,41869.0,41868.0,0.65824553]
[1641694476964,0.00043737,41869.0,41868.0,0.65824553]
[1641694477166,0.00043737,41869.0,41868.0,0.45824553]
[1641694477465,0.00043737,41869.0,41868.0,0.45698]
[1641694477816,0.00043737,41869.0,41868.0,0.43198]
[1641694478316,0.00043737,41869.0,41868.0,0.53198]
[1641694478616,0.00043737,41869.0,41868.0,0.91630404]
[1641694479117,0.00121099,41883.0,41868.0,0.91630404]
[1641694479315,0.00043737,41869.0,41868.0,0.91630404]
[1641694479814,0.00043737,41869.0,41868.0,0.89830404]
[1641694480016,0.34135225,41884.0,41871.0,0.2867354]
[1641694480217,0.34135225,41884.0,41877.0,0.059707]
[1641694480418,0.34135225,41884.0,41878.0,0.0478]
[1641694480619,0.00123824,41885.0,41878.0,0.0478]
[1641694480818,0.20076,41888.0,41878.0,0.0478]
[1641694481016,0.119415,41882.0,41878.0,0.0478]
[1641694481416,0.119415,41882.0,41879.0,0.11940987]
[1641694481669,0.119415,41882.0,41879.0,0.22691987]
[1641694482472,0.119415,41882.0,41879.0,0.21691987]
[1641694482669,0.170415,41882.0,41879.0,0.22091987]
[1641694483974,0.119415,41882.0,41879.0,0.21691987]
[1641694484570,0.119415,41882.0,41879.0,0.22291987]
[1641694484771,0.00044606,41881.0,41879.0,0.22291987]
[1641694484973,0.00044606,41881.0,41880.0,0.25030442]
[1641694485174,0.00044606,41881.0,41880.0,0.30095097]
[1641694485413,0.00044606,41881.0,41880.0,0.68513097]
[1641694486616,0.00044606,41881.0,41880.0,0.69713097]
[1641694486912,0.00044606,41881.0,41880.0,0.75682586]
[1641694487914,0.29995555,41887.0,41880.0,0.74482586]
[1641694488113,0.00044606,41881.0,41880.0,0.36064586]
[1641694488316,0.00044606,41881.0,41880.0,0.74482586]
[1641694488614,0.00044606,41881.0,41880.0,0.75882586]
[1641694489070,0.29995555,41887.0,41880.0,0.75882586]
[1641694489270,0.00043608,41881.0,41880.0,0.31495097]
[1641694489471,0.00043608,41881.0,41880.0,0.44598]
[1641694489673,0.00043608,41881.0,41880.0,0.39818]
[1641694489873,0.00043608,41881.0,41880.0,0.014]
[1641694490074,0.25270108,41881.0,41880.0,0.014]
[1641694490274,0.54843616,41881.0,41880.0,0.014]
[1641694490473,0.60814616,41881.0,41869.0,0.42309272]
[1641694490674,0.42317589,41871.0,41869.0,0.42309272]
[1641694490878,0.42317589,41871.0,41870.0,0.38418]
[1641694491274,0.42317589,41871.0,41869.0,0.48281681]
[1641694491477,0.48289989,41871.0,41869.0,0.48281681]
[1641694491675,0.059724,41871.0,41869.0,0.48281681]
[1641694492076,0.059724,41871.0,41870.0,0.378215]
[1641694492474,0.059724,41871.0,41870.0,0.437938]
[1641694492674,0.064724,41871.0,41870.0,0.479938]
[1641694493814,0.47195353,41871.0,41870.0,0.479938]
[1641694494015,0.46695353,41871.0,41870.0,0.437938]
[1641694494215,0.46695353,41871.0,41870.0,0.059723]
[1641694494816,0.47195353,41871.0,41870.0,0.102723]
[1641694495718,0.47195353,41871.0,41870.0,0.043]
[1641694495921,0.46695353,41871.0,41869.0,0.48281681]
[1641694496118,0.46845353,41871.0,41869.0,0.48281681]
[1641694496763,0.47545353,41871.0,41869.0,0.52381681]
[1641694497568,0.47545353,41871.0,41869.0,0.46409272]
[1641694497865,0.46845353,41871.0,41869.0,0.42309272]
[1641694498664,0.47845353,41871.0,41869.0,0.42309272]
[1641694499467,0.47816614,41871.0,41869.0,0.42309272]
[1641694500170,0.46816614,41871.0,41869.0,0.42309272]
[1641694500418,0.06093661,41871.0,41869.0,0.42309272]
[1641694500617,0.06993661,41871.0,41869.0,0.42309272]
[1641694501020,0.06983661,41871.0,41869.0,0.42309272]
[1641694501318,0.06983661,41871.0,41870.0,0.55589337]
[1641694501525,0.00043626,41874.0,41870.0,0.94788981]
[1641694501718,0.00043626,41874.0,41873.0,0.38559903]
[1641694501917,0.00043626,41874.0,41873.0,0.48249903]
[1641694502116,0.00043626,41874.0,41873.0,0.63341991]
[1641694502318,0.31941295,41881.0,41873.0,0.63341991]
[1641694502517,0.31941295,41881.0,41877.0,0.11941168]
[1641694502717,0.31941295,41881.0,41878.0,0.107503]
[1641694503116,0.938496,41891.0,41878.0,0.107503]
[1641694503318,0.938496,41891.0,41878.0,0.10872504]
[1641694503622,0.00043739,41885.0,41883.0,0.11940182]
[1641694503917,0.00043739,41885.0,41883.0,0.17909982]
[1641694504166,0.00043739,41885.0,41884.0,0.25550356]
[1641694504368,0.00043739,41885.0,41884.0,0.30330356]
[1641694504566,0.29175277,41887.0,41884.0,0.30330356]
[1641694504766,0.07243739,41885.0,41884.0,0.0488]
[1641694504970,0.13213639,41885.0,41884.0,0.0488]
[1641694505170,0.13213639,41885.0,41884.0,0.10849726]
[1641694505373,0.07243739,41885.0,41884.0,0.10849726]
[1641694505570,0.072,41885.0,41884.0,0.10849726]
[1641694505770,0.07243739,41885.0,41884.0,0.10849726]
[1641694505970,0.00043739,41885.0,41884.0,0.10749726]
[1641694506371,0.00043739,41885.0,41884.0,0.35911059]
[1641694506671,0.04143739,41885.0,41884.0,0.36011059]
[1641694506871,0.04143739,41885.0,41884.0,0.94574112]
[1641694507471,0.03643739,41885.0,41884.0,0.94574112]
[1641694507918,0.03643627,41885.0,41884.0,0.94574112]
[1641694508120,0.000696,41891.0,41890.0,0.00123676]
[1641694508320,0.000696,41891.0,41890.0,0.04903676]
[1641694508518,0.000696,41891.0,41890.0,0.70000732]
[1641694508723,0.000696,41891.0,41890.0,0.72100732]
[1641694508919,0.000696,41891.0,41890.0,0.82100732]
[1641694509319,0.00337303,41891.0,41890.0,0.82100732]
[1641694509520,0.00605006,41891.0,41890.0,0.82100732]
[1641694511566,0.0001,41896.0,41895.0,0.00126779]
[1641694511768,0.0001,41896.0,41895.0,0.43344779]
[1641694511965,0.0001,41896.0,41895.0,0.75950672]
[1641694512367,0.00054497,41896.0,41895.0,0.43344779]
[1641694512767,0.00054497,41896.0,41895.0,0.44444779]
[1641694513166,0.00054497,41896.0,41895.0,0.69669037]
[1641694513367,0.00053501,41896.0,41895.0,0.69669037]
[1641694513967,0.00053501,41896.0,41895.0,0.68569037]
[1641694514167,0.00053501,41896.0,41895.0,0.43344779]
[1641694514369,0.0001,41896.0,41895.0,0.43344779]
[1641694514567,0.00053501,41896.0,41895.0,0.43344779]
[1641694514769,0.00053501,41896.0,41895.0,0.44818]
[1641694514968,0.00053501,41896.0,41895.0,0.0638]
[1641694515169,0.25873501,41896.0,41895.0,0.016]
[1641694515421,0.85873501,41896.0,41895.0,0.016]
[1641694515821,0.86003006,41896.0,41895.0,0.016]
[1641694516022,0.059707,41886.0,41883.0,0.27851698]
[1641694516220,0.059707,41886.0,41881.0,0.119401]
[1641694516819,0.059707,41886.0,41881.0,0.145401]
[1641694516820,0.061707,41886.0,41881.0,0.145401]
[1641694517019,0.28672594,41885.0,41881.0,0.145401]
[1641694517219,0.059706,41884.0,41881.0,0.145401]
[1641694517420,0.32504462,41882.0,41881.0,0.026]
[1641694517822,0.58324462,41882.0,41881.0,0.026]
[1641694518022,0.58449553,41882.0,41881.0,0.026]
[1641694518223,0.059719,41879.0,41876.0,0.00037752]
[1641694518422,0.26711934,41878.0,41876.0,0.00037752]
[1641694518824,0.26711934,41878.0,41875.0,0.1]
[1641694519075,0.26711934,41878.0,41876.0,0.00037757]
[1641694520070,0.05972,41877.0,41876.0,0.00037829]
[1641694520671,0.07172,41877.0,41876.0,0.00037829]
[1641694521172,0.41672,41877.0,41876.0,0.0003783]
[1641694521370,0.67492,41877.0,41876.0,0.0003783]
[1641694521575,0.73676,41877.0,41876.0,0.0003783]
[1641694521772,0.63803861,41877.0,41876.0,0.0003783]
[1641694522173,1.03453861,41877.0,41868.0,0.000696]
[1641694522373,0.77633861,41877.0,41876.0,0.0003783]
[1641694522572,1.09425861,41877.0,41876.0,0.0003783]
[1641694522815,1.10325861,41877.0,41876.0,0.0003783]
[1641694523014,1.20325861,41877.0,41876.0,0.0003783]
[1641694523214,1.20325861,41877.0,41868.0,0.000696]
[1641694523415,0.2582,41876.0,41868.0,0.000696]
[1641694523615,0.119455,41874.0,41868.0,0.000696]
[1641694523815,0.2582,41873.0,41868.0,0.000696]
[1641694524217,0.317928,41873.0,41868.0,0.000696]
[1641694524415,0.30864906,41875.0,41870.0,0.00038017]
[1641694524616,0.30864906,41875.0,41871.0,0.05971999]
[1641694524815,0.009,41873.0,41871.0,0.05971999]
[1641694525416,0.28981647,41872.0,41868.0,0.000696]
[1641694525615,0.28981647,41872.0,41871.0,0.06010188]
[1641694526667,0.28981647,41872.0,41871.0,0.06010189]
[1641694526872,0.29881647,41872.0,41871.0,0.06010189]
[1641694527467,0.29881647,41872.0,41871.0,0.00038016]
[1641694527666,0.29881647,41872.0,41868.0,0.000696]
[1641694527865,0.29881647,41872.0,41871.0,0.00038016]
[1641694528067,0.28981647,41872.0,41871.0,0.00038016]
[1641694528768,0.29881647,41872.0,41869.0,0.48281494]
[1641694529069,0.29881647,41872.0,41871.0,0.00037829]
[1641694529869,0.29881647,41872.0,41869.0,0.48281494]
[1641694530068,0.40925847,41872.0,41871.0,0.00037829]
[1641694530715,0.41825847,41872.0,41871.0,0.00037829]